fUSD/lending_fUSD_20240518
["ID","MTS","AMOUNT","RATE_DAILY","PERIOD"]
[327404710,1716043856142,-500.0,0.0003041,2]
[327404711,1716043856152,-772.47,0.0003041,2]
[327404712,1716043856161,-500.0,0.0003041,2]
[327404713,1716043856171,-568.15,0.0003041,2]
[327404714,1716043856181,-941.67,0.0003041,2]
[327404715,1716043856191,-500.0,0.0003041,2]
[327404716,1716043856200,-500.0,0.0003041,2]
[327404717,1716043856209,-500.0,0.0003041,2]
[327404718,1716043856219,-734.54,0.0003041,2]
[327404719,1716043856228,-150.0,0.00030411,2]
[327404720,1716043856238,-523.82,0.00030411,2]
[327404721,1716043856247,-841.12,0.00030411,2]
[327404722,1716043856257,-327.99,0.00030411,2]
[327404723,1716043856269,-150.0,0.00030411,2]
[327404724,1716043856280,-752.42,0.00030411,2]
[327404725,1716043856293,-150.0,0.00030411,2]
[327404726,1716043856302,-523.82,0.00030411,2]
[327404727,1716043856312,-150.0,0.00030411,2]
[327404728,1716043856321,-420.56,0.00030411,2]
[327404729,1716043856330,-300.0,0.00030411,2]
[327404730,1716043856339,-150.0,0.00030411,2]
[327404731,1716043856349,-163.39,0.00030411,2]
[327404732,1716043856358,-351.66,0.00030411,2]
[327404733,1716043856370,-150.0,0.00030411,2]
[327404734,1716043856382,-523.82,0.00030411,2]
[327404735,1716043856391,-150.0,0.00030411,2]
[327404736,1716043856400,-163.39,0.00030411,2]
[327404737,1716043856410,-351.66,0.00030411,2]
[327404738,1716043856419,-300.0,0.00030411,2]
[327404739,1716043856428,-150.0,0.00030411,2]
[327404740,1716043856438,-351.66,0.00030411,2]
[327404741,1716043856448,-163.39,0.00030411,2]
[327404742,1716043856457,-523.82,0.00030411,2]
[327404743,1716043856467,-163.39,0.00030411,2]
[327404744,1716043856476,-150.0,0.00030411,2]
[327404745,1716043856485,-351.66,0.00030411,2]
[327404746,1716043856495,-523.82,0.00030411,2]
[327404747,1716043856504,-150.0,0.00030411,2]
[327404748,1716043856513,-2000.0,0.00030518,2]
[327404749,1716043856523,-150.0,0.000306,6]
[327404750,1716043856533,-1163.37,0.00030683,2]
[327404751,1716043856543,-500.0,0.00030683,2]
[327404752,1716043856552,-575.84,0.00030683,2]
[327404753,1716043856562,-500.0,0.00030683,2]
[327404754,1716043856572,-500.0,0.00030683,2]
[327404755,1716043856582,-500.0,0.00030683,2]
[327404756,1716043856592,-500.0,0.00030683,2]
[327404757,1716043856602,-500.0,0.00030683,2]
[327404758,1716043856611,-786.04,0.00030683,2]
[327404759,1716043856621,-500.0,0.00030683,2]
[327404760,1716043856631,-573.33,0.00030683,2]
[327404761,1716043856641,-1056.08,0.00030683,2]
[327404762,1716043856651,-628.44,0.00030683,2]
[327404763,1716043856660,-553.98,0.00030683,2]
[327404764,1716043856956,-533.33,0.00030683,2]
[327404765,1716043856967,-500.0,0.00030683,2]
[327404766,1716043856977,-500.0,0.00030683,2]
[327404767,1716043856987,-500.0,0.00030683,2]
[327404768,1716043856997,-500.0,0.00030683,2]
[327404769,1716043857006,-500.0,0.00030683,2]
[327404770,1716043857016,-500.0,0.00030683,2]
[327404771,1716043857026,-525.27,0.00030683,2]
[327404772,1716043857036,-500.0,0.00030683,2]
[327404773,1716043857045,-631.26,0.00030683,2]
[327404774,1716043857054,-1903.5,0.00030683,2]
[327404775,1716043857064,-1461.37,0.00030683,2]
[327404776,1716043857075,-500.0,0.00030683,2]
[327404777,1716043857086,-534.41,0.00030683,2]
[327404778,1716043857095,-3002.35,0.00030683,2]
[327404779,1716043857105,-2677.22,0.00030683,2]
[327404780,1716043857115,-707.42,0.00030683,2]
[327404781,1716043857125,-584.61,0.00030684,2]
[327404782,1716043857135,-500.0,0.00030684,2]
[327404783,1716043857144,-500.0,0.00030684,2]
[327404784,1716043857152,-500.0,0.00030684,2]
[327404785,1716043857162,-547.8,0.00030684,2]
[327404786,1716043857171,-521.45,0.00030684,2]
[327404787,1716043857181,-508.47,0.00030684,2]
[327404788,1716043857191,-518.21,0.00030684,2]
[327404789,1716043857200,-427.98,0.00030684,2]
[327404790,1716043857209,-679.02,0.00030684,2]
[327404791,1716043857219,-646.11,0.00030684,2]
[327404792,1716043857229,-725.67,0.00030684,2]
[327404793,1716043857240,-500.0,0.00030684,2]
[327404794,1716043857251,-948.82,0.00030684,2]
[327404795,1716043857261,-2048.85,0.00030684,2]
[327404796,1716043857270,-794.88,0.00030684,2]
[327404797,1716043857282,-500.0,0.00030684,2]
[327404798,1716043857293,-500.0,0.00030684,2]
[327404799,1716043857302,-728.94,0.00030684,2]
[327404800,1716043857312,-500.0,0.00030684,2]
[327404801,1716043857321,-550.21,0.00030684,2]
[327404802,1716043857330,-515.82,0.00030684,2]
[327404803,1716043857339,-500.0,0.00030684,2]
[327404804,1716043857348,-599.57,0.00030684,2]
[327404805,1716043857359,-510.05,0.00030684,2]
[327404806,1716043857373,-500.0,0.00030684,2]
[327404807,1716043857382,-500.0,0.00030684,2]
[327404808,1716043857392,-805.79,0.00030684,2]
[327404809,1716043857401,-500.0,0.00030684,2]
[327404810,1716043857410,-500.0,0.00030684,2]
[327404811,1716043857419,-1174.18,0.00030684,2]
[327404812,1716043857428,-4870.32,0.00030684,2]
[327404813,1716043857438,-575.52,0.00030684,2]
[327404814,1716043857447,-1151.34,0.00030684,2]
[327404815,1716043857457,-2340.96,0.00030684,2]
[327404816,1716043857467,-772.43,0.00030684,2]
[327404817,1716043857477,-500.0,0.00030684,2]
[327404818,1716043857486,-898.6,0.00030684,2]
[327404819,1716043857496,-659.13,0.00030684,2]
[327404820,1716043857506,-500.0,0.00030684,2]
[327404821,1716043857515,-500.0,0.00030684,2]
[327404822,1716043857524,-659.07,0.00030684,2]
[327404823,1716043857534,-500.0,0.00030684,2]
[327404824,1716043857544,-500.0,0.00030684,2]
[327404825,1716043857554,-772.47,0.00030684,2]
[327404826,1716043857564,-639.73184176,0.00030684,2]
[327404827,1716043857574,-568.15,0.00030684,2]
[327404828,1716043857583,-941.67,0.00030684,2]
[327404829,1716043857593,-500.0,0.00030684,2]
[327404830,1716043857603,-500.0,0.00030684,2]
[327404831,1716043857613,-500.0,0.00030684,2]
[327404832,1716043857623,-734.54,0.00030684,2]
[327404833,1716043857633,-777.9,0.00030878,2]
[327404834,1716043857643,-800.0,0.000309,11]
[327404835,1716043857652,-1163.37,0.00030957,2]
[327404836,1716043857662,-500.0,0.00030957,2]
[327404837,1716043857672,-575.84,0.00030957,2]
[327404838,1716043857681,-500.0,0.00030957,2]
[327404839,1716043857691,-500.0,0.00030957,2]
[327404840,1716043857700,-500.0,0.00030957,2]
[327404841,1716043857710,-500.0,0.00030957,2]
[327404842,1716043857719,-786.04,0.00030957,2]
[327404843,1716043857728,-500.0,0.00030957,2]
[327404844,1716043857738,-417.06004833,0.00030957,2]
[327404845,1716043857747,-1056.08,0.00030957,2]
[327404846,1716043857757,-628.44,0.00030957,2]
[327404847,1716043857767,-553.98,0.00030957,2]
[327404848,1716043857776,-533.33,0.00030957,2]
[327404849,1716043857785,-500.0,0.00030957,2]
[327404850,1716043857795,-500.0,0.00030957,2]
[327404851,1716043857804,-500.0,0.00030957,2]
[327404852,1716043857814,-500.0,0.00030957,2]
[327404853,1716043857823,-500.0,0.00030957,2]
[327404854,1716043857832,-500.0,0.00030957,2]
[327404855,1716043857841,-525.27,0.00030957,2]
[327404856,1716043857850,-500.0,0.00030957,2]
[327404857,1716043857860,-631.26,0.00030957,2]
[327404858,1716043857869,-1903.5,0.00030957,2]
[327404859,1716043857882,-1461.37,0.00030957,2]
[327404860,1716043857892,-500.0,0.00030957,2]
[327404861,1716043857903,-534.41,0.00030957,2]
[327404862,1716043857912,-3002.35,0.00030957,2]
[327404863,1716043857922,-2677.22,0.00030957,2]
[327404864,1716043857931,-707.42,0.00030957,2]
[327404865,1716043857941,-584.61,0.00030958,2]
[327404866,1716043857950,-304.51251029,0.00030958,2]
[327404867,1716043857959,-500.0,0.00030958,2]
[327404868,1716043857968,-500.0,0.00030958,2]
[327404869,1716043857977,-547.8,0.00030958,2]
[327404870,1716043857987,-521.45,0.00030958,2]
[327404871,1716043857996,-508.47,0.00030958,2]
[327404872,1716043858006,-518.21,0.00030958,2]
[327404873,1716043858015,-679.02,0.00030958,2]
[327404874,1716043858024,-646.11,0.00030958,2]
[327404875,1716043858034,-725.67,0.00030958,2]
[327404876,1716043858043,-500.0,0.00030958,2]
[327404877,1716043858052,-948.82,0.00030958,2]
[327404878,1716043858061,-2048.85,0.00030958,2]
[327404879,1716043858070,-794.88,0.00030958,2]
[327404880,1716043858080,-500.0,0.00030958,2]
[327404881,1716043858089,-500.0,0.00030958,2]
[327404882,1716043858098,-728.94,0.00030958,2]
[327404883,1716043858107,-500.0,0.00030958,2]
[327404884,1716043858116,-515.82,0.00030958,2]
[327404885,1716043858127,-500.0,0.00030958,2]
[327404886,1716043858137,-151.0,0.00030958,7]
[327404887,1716043858147,-151.0,0.00030958,7]
[327404888,1716043858156,-151.0,0.00030958,7]
[327404889,1716043858165,-510.05,0.00030958,2]
[327404890,1716043858174,-500.0,0.00030958,2]
[327404891,1716043858184,-500.0,0.00030958,2]
[327404892,1716043858194,-805.79,0.00030958,2]
[327404893,1716043858204,-500.0,0.00030958,2]
[327404894,1716043858214,-500.0,0.00030958,2]
[327404895,1716043858224,-1174.18,0.00030958,2]
[327404896,1716043858234,-4870.32,0.00030958,2]
[327404897,1716043858244,-575.52,0.00030958,2]
[327404898,1716043858253,-1151.34,0.00030958,2]
[327404899,1716043858263,-2340.96,0.00030958,2]
[327404900,1716043858273,-772.43,0.00030958,2]
[327404901,1716043858287,-500.0,0.00030958,2]
[327404902,1716043858297,-898.6,0.00030958,2]
[327404903,1716043858306,-659.13,0.00030958,2]
[327404904,1716043858316,-500.0,0.00030958,2]
[327404905,1716043858326,-500.0,0.00030958,2]
[327404906,1716043858335,-659.07,0.00030958,2]
[327404907,1716043858345,-500.0,0.00030958,2]
[327404908,1716043858354,-500.0,0.00030958,2]
[327404909,1716043858365,-772.47,0.00030958,2]
[327404910,1716043858374,-568.15,0.00030958,2]
[327404911,1716043858384,-941.67,0.00030958,2]
[327404912,1716043858393,-500.0,0.00030958,2]
[327404913,1716043858402,-500.0,0.00030958,2]
[327404914,1716043858411,-151.0,0.00030958,7]
[327404915,1716043858421,-151.0,0.00030958,7]
[327404916,1716043858431,-500.0,0.00030958,2]
[327404917,1716043858440,-734.54,0.00030958,2]
[327404918,1716043858450,-150.0,0.000311,6]
[327404919,1716043858459,-172.57,0.00031153,2]
[327404920,1716043858468,-1163.37,0.00031231,2]
[327404921,1716043858478,-500.0,0.00031231,2]
[327404922,1716043858487,-575.84,0.00031231,2]
[327404923,1716043858497,-386.32902175,0.00031231,2]
[327404924,1716043858507,-500.0,0.00031231,2]
[327404925,1716043858516,-500.0,0.00031231,2]
[327404926,1716043858526,-500.0,0.00031231,2]
[327404927,1716043858535,-786.04,0.00031231,2]
[327404928,1716043858544,-500.0,0.00031231,2]
[327404929,1716043858554,-1056.08,0.00031231,2]
[327404930,1716043858564,-628.44,0.00031231,2]
[327404931,1716043858573,-553.98,0.00031231,2]
[327404932,1716043858582,-533.33,0.00031231,2]
[327404933,1716043858591,-500.0,0.00031231,2]
[327404934,1716043858601,-500.0,0.00031231,2]
[327404935,1716043858611,-500.0,0.00031231,2]
[327404936,1716043858620,-500.0,0.00031231,2]
[327404937,1716043858630,-500.0,0.00031231,2]
[327404938,1716043858639,-500.0,0.00031231,2]
[327404939,1716043858648,-525.27,0.00031231,2]
[327404940,1716043858658,-500.0,0.00031231,2]
[327404941,1716043858667,-631.26,0.00031231,2]
[327404942,1716043858676,-1903.5,0.00031231,2]
[327404943,1716043858686,-1461.37,0.00031231,2]
[327404944,1716043858695,-500.0,0.00031231,2]
[327404945,1716043858705,-534.41,0.00031231,2]
[327404946,1716043858715,-3002.35,0.00031231,2]
[327404947,1716043858724,-2677.22,0.00031231,2]
[327404948,1716043858734,-707.42,0.00031231,2]
[327404949,1716043858744,-584.61,0.00031232,2]
[327404950,1716043858753,-500.0,0.00031232,2]
[327404951,1716043858763,-500.0,0.00031232,2]
[327404952,1716043858772,-547.8,0.00031232,2]
[327404953,1716043858782,-521.45,0.00031232,2]
[327404954,1716043858791,-508.47,0.00031232,2]
[327404955,1716043858801,-518.21,0.00031232,2]
[327404956,1716043858810,-679.02,0.00031232,2]
[327404957,1716043858819,-646.11,0.00031232,2]
[327404958,1716043858829,-725.67,0.00031232,2]
[327404959,1716043858839,-500.0,0.00031232,2]
[327404960,1716043858848,-948.82,0.00031232,2]
[327404961,1716043858857,-2048.85,0.00031232,2]
[327404962,1716043858867,-794.88,0.00031232,2]
[327404963,1716043858877,-500.0,0.00031232,2]
[327404964,1716043858886,-500.0,0.00031232,2]
[327404965,1716043858896,-728.94,0.00031232,2]
[327404966,1716043858905,-500.0,0.00031232,2]
[327404967,1716043858914,-515.82,0.00031232,2]
[327404968,1716043858923,-500.0,0.00031232,2]
[327404969,1716043858933,-510.05,0.00031232,2]
[327404970,1716043858943,-500.0,0.00031232,2]
[327404971,1716043858952,-500.0,0.00031232,2]
[327404972,1716043858962,-805.79,0.00031232,2]
[327404973,1716043858971,-500.0,0.00031232,2]
[327404974,1716043858980,-500.0,0.00031232,2]
[327404975,1716043858990,-1174.18,0.00031232,2]
[327404976,1716043858999,-4870.32,0.00031232,2]
[327404977,1716043859009,-575.52,0.00031232,2]
[327404978,1716043859018,-1151.34,0.00031232,2]
[327404979,1716043859028,-2340.96,0.00031232,2]
[327404980,1716043859038,-772.43,0.00031232,2]
[327404981,1716043859047,-500.0,0.00031232,2]
[327404982,1716043859056,-898.6,0.00031232,2]
[327404983,1716043859066,-659.13,0.00031232,2]
[327404984,1716043859075,-500.0,0.00031232,2]
[327404985,1716043859084,-500.0,0.00031232,2]
[327404986,1716043859093,-659.07,0.00031232,2]
[327404987,1716043859102,-500.0,0.00031232,2]
[327404988,1716043859111,-500.0,0.00031232,2]
[327404989,1716043859121,-772.47,0.00031232,2]
[327404990,1716043859131,-568.15,0.00031232,2]
[327404991,1716043859141,-941.67,0.00031232,2]
[327404992,1716043859151,-500.0,0.00031232,2]
[327404993,1716043859159,-500.0,0.00031232,2]
[327404994,1716043859169,-292.63776525,0.00031232,2]
[327404995,1716043859178,-734.54,0.00031232,2]
[327404996,1716043859187,-1062.0,0.00031233,4]
[327404997,1716043859197,-151.24,0.00031315,2]
[327404998,1716043859207,-150.0,0.00031342,2]
[327404999,1716043859216,-150.0,0.00031342,2]
[327405000,1716043859225,-150.0,0.00031342,2]
[327405001,1716043859235,-11746.2104736,0.00031376,2]
[327405002,1716043859244,-205.60457426,0.00031462,3]
[327405003,1716043859254,-1163.37,0.00031505,2]
[327405004,1716043859264,-500.0,0.00031505,2]
[327405005,1716043859275,-575.84,0.00031505,2]
[327405006,1716043859289,-500.0,0.00031505,2]
[327405007,1716043859299,-500.0,0.00031505,2]
[327405008,1716043859309,-500.0,0.00031505,2]
[327405009,1716043859318,-786.04,0.00031505,2]
[327405010,1716043859328,-500.0,0.00031505,2]
[327405011,1716043859338,-1056.08,0.00031505,2]
[327405012,1716043859349,-628.44,0.00031505,2]
[327405013,1716043859359,-553.98,0.00031505,2]
[327405014,1716043859370,-533.33,0.00031505,2]
[327405015,1716043859383,-500.0,0.00031505,2]
[327405016,1716043859393,-500.0,0.00031505,2]
[327405017,1716043859402,-500.0,0.00031505,2]
[327405018,1716043859412,-500.0,0.00031505,2]
[327405019,1716043859421,-500.0,0.00031505,2]
[327405020,1716043859430,-500.0,0.00031505,2]
[327405021,1716043859440,-525.27,0.00031505,2]
[327405022,1716043859448,-500.0,0.00031505,2]
[327405023,1716043859458,-631.26,0.00031505,2]
[327405024,1716043859467,-1903.5,0.00031505,2]
[327405025,1716043859477,-1461.37,0.00031505,2]
[327405026,1716043859487,-610.07672817,0.00031505,2]
[327405027,1716043859496,-534.41,0.00031505,2]
[327405028,1716043859506,-3002.35,0.00031505,2]
[327405029,1716043859515,-2677.22,0.00031505,2]
[327405030,1716043859525,-707.42,0.00031505,2]
[327405031,1716043859535,-584.61,0.00031506,2]
[327405032,1716043859544,-500.0,0.00031506,2]
[327405033,1716043859554,-500.0,0.00031506,2]
[327405034,1716043859563,-547.8,0.00031506,2]
[327405035,1716043859572,-521.45,0.00031506,2]
[327405036,1716043859583,-508.47,0.00031506,2]
[327405037,1716043859593,-518.21,0.00031506,2]
[327405038,1716043859602,-679.02,0.00031506,2]
[327405039,1716043859612,-646.11,0.00031506,2]
[327405040,1716043859621,-725.67,0.00031506,2]
[327405041,1716043859633,-500.0,0.00031506,2]
[327405042,1716043859642,-948.82,0.00031506,2]
[327405043,1716043859651,-2048.85,0.00031506,2]
[327405044,1716043859660,-794.88,0.00031506,2]
[327405045,1716043859671,-500.0,0.00031506,2]
[327405046,1716043859681,-500.0,0.00031506,2]
[327405047,1716043859690,-728.94,0.00031506,2]
[327405048,1716043859699,-500.0,0.00031506,2]
[327405049,1716043859708,-515.82,0.00031506,2]
[327405050,1716043859718,-500.0,0.00031506,2]
[327405051,1716043859728,-510.05,0.00031506,2]
[327405052,1716043859737,-500.0,0.00031506,2]
[327405053,1716043859747,-805.79,0.00031506,2]
[327405054,1716043859756,-639.02375098,0.00031506,2]
[327405055,1716043859765,-500.0,0.00031506,2]
[327405056,1716043859777,-1174.18,0.00031506,2]
[327405057,1716043859786,-4870.32,0.00031506,2]
[327405058,1716043859796,-575.52,0.00031506,2]
[327405059,1716043859806,-1151.34,0.00031506,2]
[327405060,1716043859816,-2340.96,0.00031506,2]
[327405061,1716043859825,-772.43,0.00031506,2]
[327405062,1716043859835,-500.0,0.00031506,2]
[327405063,1716043859844,-898.6,0.00031506,2]
[327405064,1716043859854,-659.13,0.00031506,2]
[327405065,1716043859863,-500.0,0.00031506,2]
[327405066,1716043859873,-500.0,0.00031506,2]
[327405067,1716043859882,-659.07,0.00031506,2]
[327405068,1716043859892,-535.22852393,0.00031506,2]
[327405069,1716043859901,-500.0,0.00031506,2]
[327405070,1716043859911,-772.47,0.00031506,2]
[327405071,1716043859921,-568.15,0.00031506,2]
[327405072,1716043859930,-941.67,0.00031506,2]
[327405073,1716043859940,-500.0,0.00031506,2]
[327405074,1716043859949,-500.0,0.00031506,2]
[327405075,1716043859960,-734.54,0.00031506,2]
[327405076,1716043859971,-200.0,0.00031526,2]
[327405077,1716043859980,-1000.0,0.00031526,15]
[327405078,1716043859990,-500.0,0.00031526,2]
[327405079,1716043860000,-7372.10376585,0.00031581,2]
[327405080,1716043860010,-151.0,0.00031581,7]
[327405081,1716043860019,-150.0,0.000316,7]
[327405082,1716043860028,-200.0,0.00031636,15]
[327405083,1716043860038,-250000.0,0.000317,2]
[327405084,1716043860048,-151.0,0.000317,7]
[327405085,1716043860058,-151.0,0.000317,7]
[327405086,1716043860068,-5868.27204931,0.00031779,2]
[327405087,1716043860198,-151.0,0.00031779,7]
[327405088,1716043860208,-151.0,0.00031779,7]
[327405089,1716043860218,-1163.37,0.00031779,2]
[327405090,1716043860228,-500.0,0.00031779,2]
[327405091,1716043860238,-575.84,0.00031779,2]
[327405092,1716043860248,-500.0,0.00031779,2]
[327405093,1716043860258,-593.58530814,0.00031779,2]
[327405094,1716043860268,-512.61,0.00031779,2]
[327405095,1716043860277,-786.04,0.00031779,2]
[327405096,1716043860292,-500.0,0.00031779,2]
[327405097,1716043860301,-1056.08,0.00031779,2]
[327405098,1716043860311,-628.44,0.00031779,2]
[327405099,1716043860322,-553.98,0.00031779,2]
[327405100,1716043860332,-533.33,0.00031779,2]
[327405101,1716043860342,-500.0,0.00031779,2]
[327405102,1716043860351,-500.0,0.00031779,2]
[327405103,1716043860363,-500.0,0.00031779,2]
[327405104,1716043860372,-500.0,0.00031779,2]
[327405105,1716043860384,-500.0,0.00031779,2]
[327405106,1716043860393,-154.73745641,0.00031779,2]
[327405107,1716043860403,-525.27,0.00031779,2]
[327405108,1716043860412,-500.0,0.00031779,2]
[327405109,1716043860422,-631.26,0.00031779,2]
[327405110,1716043860432,-1903.5,0.00031779,2]
[327405111,1716043860441,-151.0,0.00031779,7]
[327405112,1716043860452,-151.0,0.00031779,7]
[327405113,1716043860462,-1461.37,0.00031779,2]
[327405114,1716043860472,-534.41,0.00031779,2]
[327405115,1716043860482,-3002.35,0.00031779,2]
[327405116,1716043860492,-2677.22,0.00031779,2]
[327405117,1716043860502,-707.42,0.00031779,2]
[327405118,1716043860512,-9367.39818844,0.0003178,5]
[327405119,1716043860522,-584.61,0.0003178,2]
[327405120,1716043860532,-500.0,0.0003178,2]
[327405121,1716043860542,-500.0,0.0003178,2]
[327405122,1716043860552,-547.8,0.0003178,2]
[327405123,1716043860561,-521.45,0.0003178,2]
[327405124,1716043860572,-508.47,0.0003178,2]
[327405125,1716043860582,-518.21,0.0003178,2]
[327405126,1716043860592,-679.02,0.0003178,2]
[327405127,1716043860602,-646.11,0.0003178,2]
[327405128,1716043860611,-725.67,0.0003178,2]
[327405129,1716043860620,-500.0,0.0003178,2]
[327405130,1716043860631,-948.82,0.0003178,2]
[327405131,1716043860640,-2048.85,0.0003178,2]
[327405132,1716043860649,-794.88,0.0003178,2]
[327405133,1716043860659,-500.0,0.0003178,2]
[327405134,1716043860668,-213.74242268,0.0003178,2]
[327405135,1716043860678,-728.94,0.0003178,2]
[327405136,1716043860687,-500.0,0.0003178,2]
[327405137,1716043860696,-515.82,0.0003178,2]
[327405138,1716043860706,-500.0,0.0003178,2]
[327405139,1716043860716,-510.05,0.0003178,2]
[327405140,1716043860726,-500.0,0.0003178,2]
[327405141,1716043860736,-805.79,0.0003178,2]
[327405142,1716043860746,-500.0,0.0003178,2]
[327405143,1716043860755,-1174.18,0.0003178,2]
[327405144,1716043860764,-4870.32,0.0003178,2]
[327405145,1716043860774,-575.52,0.0003178,2]
[327405146,1716043860784,-1151.34,0.0003178,2]
[327405147,1716043860794,-2340.96,0.0003178,2]
[327405148,1716043860803,-772.43,0.0003178,2]
[327405149,1716043860814,-554.6149125,0.0003178,2]
[327405150,1716043860823,-898.6,0.0003178,2]
[327405151,1716043860833,-659.13,0.0003178,2]
[327405152,1716043860843,-500.0,0.0003178,2]
[327405153,1716043860852,-500.0,0.0003178,2]
[327405154,1716043860861,-659.07,0.0003178,2]
[327405155,1716043860871,-500.0,0.0003178,2]
[327405156,1716043860882,-772.47,0.0003178,2]
[327405157,1716043860891,-568.15,0.0003178,2]
[327405158,1716043860900,-941.67,0.0003178,2]
[327405159,1716043860910,-500.0,0.0003178,2]
[327405160,1716043860920,-500.0,0.0003178,2]
[327405161,1716043860930,-734.54,0.0003178,2]
[327405162,1716043860940,-5380.4953981,0.00031785,2]
[327405163,1716043860950,-606.6724235,0.00031785,2]
[327405164,1716043860959,-45992.0485748,0.00031785,2]
[327405165,1716043860968,-3743.7697353,0.00031785,2]
[327405166,1716043860979,-1100.0,0.000318,11]
[327405167,1716043860988,-728.00690935,0.00031807,2]
[327405168,1716043860998,-4660.00392166,0.0003188,2]
[327405169,1716043861007,-391465.32470405,0.000319,7]
[327405170,1716043861027,-394.58101345,0.000319,7]
[327405171,1716043861039,-291.17353982,0.000319,7]
[327405172,1716043861050,-445.25147157,0.000319,7]
[327405173,1716043861061,-800.65,0.000319,7]
[327405174,1716043861073,-644.04481102,0.000319,7]
[327405175,1716043861086,-771.13000008,0.000319,7]
[327405176,1716043861097,-104401.64348997,0.000319,7]
[327405177,1716043861109,-656.5465786,0.000319,7]
[327405178,1716043861121,-3522.75977436,0.000319,7]
[327405179,1716043861164,-992.4948355,0.00028643,2]
[327405180,1716043861187,-539.51577388,0.00028643,2]
[327405181,1716043861197,-16757.04520222,0.000319,7]
[327405182,1716043861212,-11523.30000004,0.000319,7]
[327405183,1716043861223,-2010.70803,0.000319,7]
[327405184,1716043861234,-1690.85742108,0.000319,7]
[327405185,1716043861245,-959.60639431,0.000319,7]
[327405186,1716043861256,-2070.0,0.000319,7]
[327405187,1716043861291,-13199.39071533,0.000319,7]
[327405188,1716043861303,-1564.5228,0.000319,7]
[327405189,1716043861322,-639.91342,0.000319,7]
[327405204,1716044404858,231.06296396,0.0003,90]
[327405218,1716045032536,-306.21820895,0.00016574,2]
[327405219,1716045032545,-889.32086809,0.00016575,2]
[327405220,1716045033165,-2193.07254094,0.00016575,2]
[327405221,1716045033177,-7.05412141,0.00016575,2]
[327405222,1716045033187,-155.0,0.00016576,2]
[327405223,1716045033197,-155.0,0.00016576,2]
[327405224,1716045033206,-1272.41491777,0.00016576,2]
[327405225,1716045033215,-268.23885933,0.00016576,2]
[327405226,1716045033225,-5273.17210479,0.00016577,2]
[327405227,1716045033234,-237.25590478,0.00016577,2]
[327405228,1716045033243,-2221.82871026,0.00016577,2]
[327405229,1716045033253,-155.0,0.00016578,2]
[327405230,1716045033262,-883.23060995,0.00016578,2]
[327405231,1716045033271,-155.0,0.00016578,2]
[327405232,1716045033280,-457.62510194,0.00016578,2]
[327405233,1716045033290,-155.0,0.00016578,2]
[327405234,1716045033300,-157.70718433,0.00016578,2]
[327405235,1716045033309,-217.33379748,0.00016578,2]
[327405236,1716045033318,-155.0,0.00016579,2]